bitfinex-derivatives/quotes_SOLF0:USTF0_20241222
["timestamp","ask_amount","ask_price","bid_price","bid_amount"]
[1734850599851,17.31306374,183.46,183.36,4.3003]
[1734850600149,17.31306374,183.46,183.36,7.0287]
[1734850600344,14.37306374,183.43,183.36,7.0287]
[1734850600546,14.37306374,183.43,183.36,4.3003]
[1734850600750,2.7278,183.42,183.37,2.7284]
[1734850601451,2.7278,183.42,183.36,4.3003]
[1734850601751,2.7278,183.42,183.36,7.0289]
[1734850602449,14.37306374,183.43,183.38,2.7282]
[1734850602746,14.37306374,183.43,183.36,4.3003]
[1734850602747,17.31306374,183.46,183.36,4.3003]
[1734850602948,14.37306374,183.46,183.36,4.3003]
[1734850603147,17.31306374,183.46,183.37,2.94]
[1734850603747,20.04016374,183.46,183.37,2.94]
[1734850604445,20.04016374,183.46,183.41,2.7278]
[1734850607150,2.7273,183.45,183.39,2.728]
[1734850608155,17.31306374,183.46,183.39,2.728]
[1734850608357,2.7274,183.44,183.39,2.728]
[1734850608654,14.37306374,183.43,183.37,2.7283]
[1734850608848,2.7278,183.42,183.37,2.7283]
[1734850609050,5.7678,183.42,183.37,2.7283]
[1734850610953,2.7278,183.41,183.36,4.3003]
[1734850612066,2.7278,183.41,183.36,7.0287]
[1734850612657,20.14066374,183.43,183.38,2.7282]
[1734850613162,17.41306374,183.43,183.38,2.7282]
[1734850613363,2.7277,183.42,183.36,4.3003]
[1734850613566,2.7277,183.42,183.37,2.7284]
[1734850614663,2.7277,183.42,183.36,4.3003]
[1734850614863,20.14066374,183.43,183.38,2.7282]
[1734850618071,14.76789402,183.43,183.38,2.7282]
[1734850618573,12.04029402,183.43,183.38,2.7282]
[1734850618773,2.7277,183.42,183.38,2.7282]
[1734850621075,9.00029402,183.4,183.32,2.1648]
[1734850621468,5.7683,183.39,183.34,2.7287]
[1734850621676,5.7683,183.39,183.32,2.1648]
[1734850622473,3.04,183.39,183.32,2.1648]
[1734850623574,3.04,183.39,183.37,2.7284]
[1734850623871,3.04,183.39,183.32,2.1648]
[1734850623872,2.7271,183.46,183.32,2.1648]
[1734850624177,9.00029402,183.46,183.41,2.7277]
[1734850624778,12.04029402,183.46,183.41,2.7277]
[1734850625571,2.7272,183.45,183.41,2.7277]
[1734850626175,9.00029402,183.46,183.42,2.7276]
[1734850626878,12.04029402,183.46,183.42,2.7276]
[1734850627881,12.04029402,183.46,183.43,2.7274]
[1734850628983,12.04029402,183.46,183.41,2.7277]
[1734850629285,14.76749402,183.46,183.41,2.7277]
[1734850629884,12.04029402,183.46,183.41,2.7277]
[1734850630083,2.7272,183.45,183.41,2.7277]
[1734850636285,12.04029402,183.46,183.36,5.007]
[1734850637389,22.4876638,183.55,183.42,9.00029402]
[1734850637581,22.4876638,183.55,183.43,9.1848]
[1734850637882,22.4876638,183.55,183.51,2.7263]
[1734850638085,9.00029402,183.53,183.43,6.2448]
[1734850638384,9.00029402,183.53,183.44,2.94]
[1734850639387,9.00029402,183.53,183.43,6.2448]
[1734850639584,2.7264,183.51,183.46,2.727]
[1734850641487,9.00029402,183.53,183.44,2.94]
[1734850641691,2.7262,183.52,183.47,2.7269]
[1734850641987,9.00029402,183.53,183.44,2.94]
[1734850642188,9.00029402,183.53,183.48,2.7266]
[1734850642884,11.94029402,183.56,183.44,2.94]
[1734850643083,2.38591456,183.57,183.45,11.94029402]
[1734850643286,2.7253,183.59,183.53,2.7259]
[1734850643882,2.7254,183.58,183.53,2.7259]
[1734850644288,11.94029402,183.6,183.5,2.94]
[1734850644289,9.00029402,183.6,183.5,2.94]
[1734850644483,2.7252,183.59,183.5,2.94]
[1734850644882,9.00029402,183.59,183.5,2.94]
[1734850645089,9.00029402,183.59,183.51,3.9498]
[1734850645590,9.00029402,183.59,183.55,2.7257]
[1734850645888,2.7248,183.62,183.54,2.92]
[1734850646089,9.00029402,183.61,183.54,2.92]
[1734850646589,11.72519402,183.61,183.56,2.7256]
[1734850646789,9.00029402,183.61,183.54,2.92]
[1734850647088,2.7256,183.57,183.52,2.7262]
[1734850647394,11.72589402,183.57,183.52,2.7262]
[1734850649287,2.7256,183.57,183.52,2.7262]
[1734850650087,2.7256,183.57,183.51,6.8698]
[1734850650288,2.7256,183.57,183.53,2.726]
[1734850653495,2.7256,183.57,183.52,2.7262]
[1734850655593,9.00029402,183.56,183.5,2.7264]
[1734850655790,9.00029402,183.53,183.46,2.92]
[1734850656109,9.00029402,183.53,183.45,2.92]
[1734850656697,2.7263,183.52,183.47,2.7268]
[1734850657097,2.7263,183.52,183.45,2.92]
[1734850657396,9.00029402,183.53,183.44,4.0783]
[1734850657397,2.7264,183.51,183.44,4.0783]
[1734850657598,2.7264,183.51,183.44,6.9983]
[1734850657793,9.00029402,183.53,183.46,2.7271]
[1734850657999,2.7266,183.5,183.46,2.7271]
[1734850658199,9.00029402,183.5,183.44,4.0783]
[1734850660400,2.7269,183.48,183.44,4.0783]
[1734850660596,2.7269,183.48,183.44,6.8056]
[1734850664196,2.7262,183.52,183.47,2.7268]
[1734850665096,2.7264,183.51,183.47,2.7268]
[1734850666393,9.00029402,183.53,183.45,2.7272]
[1734850667600,2.7266,183.5,183.45,2.7272]
[1734850668900,2.7262,183.52,183.47,2.7268]
[1734850669108,2.7262,183.52,183.44,4.0783]
[1734850669599,2.7262,183.52,183.46,2.727]
[1734850669901,2.7262,183.52,183.44,4.0783]
[1734850670303,2.7262,183.52,183.48,2.7268]
[1734850673309,2.7264,183.51,183.47,2.7269]
[1734850674609,2.7265,183.5,183.46,2.7271]
[1734850674906,9.00029402,183.5,183.44,4.0783]
[1734850676403,2.7269,183.48,183.44,6.8057]
[1734850680608,2.7267,183.49,183.45,2.7271]
[1734850685012,2.92,183.51,183.44,4.0783]
[1734850685210,2.92,183.51,183.43,2.1069]
[1734850685211,9.00029402,183.47,183.34,85.33622279]
[1734850685412,9.00029402,183.44,183.36,26.36182283]
[1734850685916,2.7278,183.42,183.36,26.36182283]
[1734850686517,2.7278,183.42,183.37,2.7284]
[1734850687721,2.92,183.41,183.25,191.92210841]
[1734850687921,9.00029402,183.38,183.29,4.038]
[1734850688224,11.92029402,183.38,183.3,22.23932283]
[1734850688722,2.7285,183.37,183.32,2.729]
[1734850689126,2.92,183.38,183.34,2.7289]
[1734850689324,11.92029402,183.41,183.29,13.03829402]
[1734850690524,2.7281,183.4,183.34,2.7288]
[1734850691021,2.7281,183.4,183.29,13.03829402]
[1734850691022,2.7281,183.4,183.35,2.7287]
[1734850691423,11.92029402,183.41,183.35,2.7287]
[1734850691424,2.7281,183.39,183.35,2.7287]
[1734850695327,11.92029402,183.41,183.29,15.95829402]
[1734850695527,2.7284,183.37,183.29,15.95829402]
[1734850695721,11.92029402,183.41,183.29,13.03829402]
[1734850695921,9.00029402,183.38,183.31,2.7293]
[1734850696230,9.00029402,183.35,183.29,4.038]
[1734850696429,11.92029402,183.35,183.29,4.038]
[1734850697131,2.7292,183.32,183.29,4.038]
[1734850698632,5.6487,183.35,183.29,4.038]
[1734850699028,5.6487,183.35,183.3,2.7293]
[1734850700129,2.92,183.35,183.29,4.038]
[1734850700834,9.00029402,183.38,183.29,4.038]
[1734850701131,2.7285,183.37,183.32,2.7291]
[1734850703036,11.92029402,183.38,183.29,4.038]
[1734850703929,11.92029402,183.38,183.29,6.7675]
[1734850704433,2.7289,183.34,183.29,6.7675]
[1734850707938,11.92029402,183.38,183.29,4.038]
[1734850707939,2.7285,183.37,183.29,4.038]
[1734850708130,5.6485,183.37,183.29,4.038]
[1734850708537,2.7285,183.37,183.29,4.038]
[1734850708933,2.7285,183.37,183.32,2.729]
[1734850710138,2.92,183.38,183.32,2.729]
[1734850710338,2.7286,183.36,183.32,2.729]
[1734850714642,2.92,183.38,183.35,2.7287]
[1734850714836,9.00029402,183.39,183.35,2.7287]
[1734850715142,2.92,183.4,183.35,2.7287]
[1734850715734,9.00029402,183.42,183.35,2.7287]
[1734850716035,2.92,183.41,183.35,2.7287]
[1734850716437,2.7281,183.39,183.35,2.7287]
[1734850717634,9.00029402,183.42,183.34,2.92]
[1734850717836,9.00029402,183.45,183.35,2.1133]
[1734850718131,11.92029402,183.45,183.35,2.1133]
[1734850718340,11.92029402,183.45,183.36,4.1092]
[1734850718633,2.92,183.46,183.36,4.1092]
[1734850718836,2.92,183.47,183.36,4.1092]
[1734850719039,22.4876638,183.53,183.38,9.00029402]
[1734850719342,9.00029402,183.5,183.39,2.92]
[1734850720135,11.92029402,183.53,183.41,9.00029402]
[1734850720435,9.00029402,183.53,183.42,2.0902]
[1734850720637,9.00029402,183.53,183.43,2.92]
[1734850720835,2.92,183.55,183.47,2.7268]
[1734850720836,2.7259,183.55,183.47,2.7268]
[1734850721040,2.7259,183.55,183.44,13.17149402]
[1734850721339,11.92029402,183.56,183.44,13.17149402]
[1734850722132,9.00029402,183.5,183.44,4.1712]
[1734850722737,2.7268,183.48,183.44,4.1712]
[1734850724842,2.7268,183.48,183.43,2.7275]
[1734850724843,14.39075028,183.51,183.42,2.0902]
[1734850725042,2.7271,183.46,183.4,5.6479]
[1734850725539,2.7271,183.46,183.41,2.7278]
[1734850727844,2.92,183.48,183.4,2.92]
[1734850728043,2.7269,183.47,183.42,2.7277]
[1734850730548,2.92,183.48,183.4,2.92]
[1734850730745,2.7271,183.46,183.41,2.7278]
[1734850735050,2.7272,183.45,183.4,2.728]
[1734850735249,17.31075028,183.48,183.38,4.0075]
[1734850736245,2.7275,183.44,183.39,2.7281]
[1734850736452,2.92,183.44,183.38,1.9877]
[1734850737557,2.7279,183.41,183.38,1.9877]
[1734850738551,2.92,183.44,183.36,2.0282]
[1734850738749,2.7282,183.39,183.34,2.7288]
[1734850739548,2.92,183.4,183.33,2.7289]
[1734850739743,2.92,183.4,183.32,4.2681]
[1734850740549,2.7285,183.37,183.32,6.9971]
[1734850740751,2.92,183.4,183.32,4.2681]
[1734850741243,2.7287,183.35,183.31,2.7293]
[1734850741444,2.92,183.36,183.28,2.0587]
[1734850741955,14.39075028,183.42,183.28,2.0587]
[1734850742149,2.92,183.41,183.28,2.0587]
[1734850742348,2.7284,183.38,183.28,2.0587]
[1734850742954,2.7285,183.37,183.32,2.729]
[1734850743150,2.7285,183.37,183.28,2.0587]
[1734850744251,2.7282,183.39,183.34,2.7287]
[1734850749150,2.7286,183.36,183.32,2.729]
[1734850749453,11.92238844,183.41,183.28,2.0587]
[1734850749454,9.00238844,183.38,183.28,4.9787]
[1734850750053,2.7284,183.38,183.33,2.729]
[1734850751053,2.728,183.4,183.29,9.00238844]
[1734850751260,9.00238844,183.41,183.3,2.92]
[1734850751555,2.92,183.43,183.3,2.92]
[1734850751760,2.7277,183.42,183.38,2.7283]
[1734850752961,2.7277,183.42,183.33,4.0412]
[1734850753163,2.92,183.43,183.33,4.0412]
[1734850753363,9.00238844,183.41,183.33,4.0412]
[1734850754458,2.728,183.4,183.36,2.7286]
[1734850756659,9.00238844,183.41,183.33,4.0412]
[1734850756863,2.7278,183.42,183.39,2.7281]
[1734850757062,2.7278,183.42,183.33,4.0412]
[1734850757264,2.7278,183.42,183.37,2.7283]
[1734850757659,2.7278,183.42,183.33,4.0412]
[1734850758057,2.7278,183.42,183.37,2.7283]
[1734850758465,2.7279,183.41,183.37,2.7283]
[1734850760559,2.728,183.4,183.36,2.7285]
[1734850760762,2.728,183.4,183.33,4.0412]
[1734850761166,2.728,183.4,183.36,2.7285]
[1734850761665,2.728,183.41,183.33,4.0412]
[1734850761864,2.728,183.41,183.36,2.7284]
[1734850762165,2.728,183.41,183.33,6.9612]
[1734850763664,2.728,183.41,183.37,2.7284]
[1734850765565,2.92,183.43,183.33,6.9612]
[1734850765770,2.92,183.43,183.33,4.0412]
[1734850765771,2.7281,183.4,183.33,4.0412]
[1734850766370,2.7281,183.39,183.35,2.7286]
[1734850766864,2.7281,183.39,183.36,2.7286]
[1734850768172,2.92,183.43,183.38,2.7282]
[1734850768572,2.92,183.43,183.33,4.0412]
[1734850769273,2.7281,183.4,183.36,2.7286]
[1734850774376,2.92,183.43,183.33,4.0412]
[1734850774576,9.00238844,183.41,183.34,2.7287]
[1734850775480,9.00238844,183.41,183.35,2.7287]
[1734850775481,2.7283,183.39,183.35,2.7287]
[1734850776174,2.92,183.38,183.33,2.0307]
[1734850776373,11.92238844,183.38,183.29,24.23982283]
[1734850776781,2.729,183.34,183.29,26.96932283]
[1734850777878,2.729,183.34,183.3,2.7295]
[1734850778279,5.649,183.34,183.3,2.7295]
[1734850781682,5.649,183.34,183.29,2.7295]
[1734850782574,9.00238844,183.33,183.25,2.1231]
[1734850782978,2.7296,183.3,183.25,4.8532]
[1734850783174,9.00238844,183.33,183.25,4.8532]
[1734850783379,9.00238844,183.3,183.24,22.23932283]
[1734850783677,2.92,183.29,183.24,22.23932283]
[1734850783873,2.92,183.29,183.23,2.0556]
[1734850784175,2.92,183.29,183.2,22.23932283]
[1734850784176,2.7301,183.26,183.2,22.23932283]
[1734850785080,2.7301,183.26,183.21,2.7308]
[1734850785281,9.00238844,183.27,183.19,2.138]
[1734850785476,9.00238844,183.27,183.19,4.8691]
[1734850785782,9.00238844,183.24,183.19,2.138]
[1734850785980,2.92,183.23,183.19,2.138]
[1734850787076,2.92,183.23,183.18,2.0887]
[1734850788381,2.92,183.23,183.19,2.7311]
[1734850790181,9.00238844,183.33,183.18,2.0887]
[1734850790381,9.00238844,183.29,183.18,2.0887]
[1734850791484,2.7299,183.27,183.22,2.7306]
[1734850792186,2.92,183.28,183.23,2.7305]
[1734850792389,2.7298,183.29,183.18,11.09108844]
[1734850793177,2.7298,183.29,183.23,2.7304]
[1734850794292,11.92238844,183.35,183.22,1.9823]
[1734850794483,9.00238844,183.35,183.23,2.0511]
[1734850794687,2.92,183.34,183.23,2.0511]
[1734850795489,2.7291,183.33,183.28,2.7297]
[1734850796102,56.76,183.42,183.25,2.92]
[1734850796402,2.7288,183.35,183.3,2.7294]
[1734850796794,14.65098844,183.36,183.31,2.7293]
[1734850797999,11.73098844,183.36,183.31,2.7293]
[1734850799600,2.7286,183.36,183.31,2.7293]
[1734850801198,2.92,183.38,183.3,2.045]
[1734850801199,2.7284,183.38,183.33,2.729]
[1734850801399,9.00238844,183.4,183.3,2.045]
[1734850801602,9.00238844,183.4,183.3,4.2058]
[1734850802098,11.92238844,183.4,183.3,4.2058]
[1734850802301,11.92238844,183.4,183.33,2.729]
[1734850802302,2.7281,183.39,183.33,2.729]
[1734850802899,11.92238844,183.4,183.32,2.729]
[1734850803099,9.00238844,183.37,183.3,2.045]
[1734850803398,9.00238844,183.34,183.26,2.1734]
[1734850803897,2.729,183.33,183.26,2.1734]
[1734850805298,2.729,183.33,183.28,2.7296]
[1734850805901,11.73128844,183.34,183.29,2.7295]
[1734850806603,2.92,183.35,183.3,2.7294]
[1734850807401,5.6487,183.35,183.3,2.7294]
[1734850808201,2.92,183.35,183.29,2.7296]
[1734850808394,2.92,183.35,183.26,2.1734]
[1734850809203,9.00238844,183.31,183.24,2.0173]
[1734850809404,2.92,183.3,183.24,2.0173]
[1734850810400,2.92,183.33,183.24,2.0173]
[1734850811204,2.92,183.33,183.24,4.9373]
[1734850811503,9.00238844,183.4,183.27,9.00238844]
[1734850811705,9.00238844,183.4,183.28,7.0356]
[1734850812006,2.7281,183.39,183.34,2.7288]
[1734850812304,11.92238844,183.4,183.34,2.7288]
[1734850812494,2.7287,183.36,183.31,2.7293]
[1734850813803,11.92238844,183.4,183.28,7.0356]
[1734850814002,2.92,183.4,183.28,7.0356]
[1734850814400,8.07367983,183.5,183.28,7.0356]
[1734850814602,14.40528873,183.45,183.29,14.40528873]
[1734850814899,2.92,183.44,183.29,14.40528873]
[1734850815103,17.32528873,183.45,183.29,14.40528873]
[1734850816008,2.7275,183.43,183.38,2.7282]
[1734850816511,17.32528873,183.45,183.31,2.92]
[1734850816706,14.40528873,183.42,183.31,2.92]
[1734850816907,2.9,183.41,183.31,2.92]
[1734850817105,2.7283,183.38,183.33,2.7289]
[1734850817707,14.40528873,183.39,183.31,2.7292]
[1734850818506,14.40528873,183.39,183.28,7.0156]
[1734850818707,14.40528873,183.42,183.34,2.7289]
[1734850818908,2.9,183.41,183.34,2.7289]
[1734850819110,2.9,183.41,183.28,7.0156]
[1734850819707,2.9,183.41,183.29,14.40528873]
[1734850820011,2.9,183.41,183.37,2.7284]
[1734850820406,2.9,183.41,183.34,2.121]
[1734850820711,5.6275,183.43,183.38,2.7282]
[1734850822315,2.7275,183.43,183.38,2.7282]
[1734850823613,2.7278,183.42,183.37,2.7284]
[1734850823806,2.9,183.44,183.37,2.7284]
[1734850824017,2.9,183.44,183.34,2.121]
[1734850824018,14.40528873,183.42,183.34,2.121]
[1734850824216,14.40528873,183.42,183.34,4.8497]
[1734850824618,14.40528873,183.42,183.34,2.121]
[1734850824819,14.40528873,183.42,183.36,2.7286]
[1734850825116,2.9,183.44,183.34,2.121]
[1734850825317,2.7277,183.42,183.37,2.7284]
[1734850825618,2.7277,183.42,183.34,2.121]
[1734850825819,2.7277,183.42,183.36,2.7285]
[1734850826020,2.7277,183.42,183.34,2.121]
[1734850826518,2.7277,183.42,183.38,2.7282]
[1734850827618,14.40528873,183.42,183.34,2.121]
[1734850828422,2.7282,183.39,183.35,2.7287]
[1734850829824,14.40528873,183.42,183.35,2.7287]
[1734850830020,2.728,183.4,183.36,2.7286]
[1734850830825,2.7278,183.42,183.38,2.7282]
[1734850831123,2.9,183.44,183.34,2.121]
[1734850832227,14.40528873,183.45,183.34,2.121]
[1734850832426,2.7276,183.43,183.38,2.7282]
[1734850832926,2.9,183.44,183.34,2.121]
[1734850833231,2.7278,183.42,183.37,2.7284]
[1734850834719,2.9,183.44,183.37,2.7284]
[1734850834923,2.9,183.44,183.34,2.121]
[1734850835122,2.9,183.44,183.36,2.7285]
[1734850835523,2.728,183.41,183.36,2.7285]
[1734850835726,2.9,183.44,183.34,2.121]
[1734850836527,2.7277,183.42,183.37,2.7284]
[1734850837222,2.9,183.44,183.34,2.121]
[1734850837423,2.9,183.46,183.34,2.121]
[1734850837626,2.9,183.46,183.35,1.9758]
[1734850837825,2.7273,183.45,183.41,2.7278]
[1734850838420,2.16434602,183.52,183.37,2.1289]
[1734850838627,2.16434602,183.52,183.4,2.9]
[1734850838828,74.65403965,183.53,183.41,1.9971]
[1734850839131,77.55403965,183.53,183.41,1.9971]
[1734850839327,77.55403965,183.53,183.42,2.0015]
[1734850840524,2.7262,183.52,183.46,2.727]
[1734850841626,77.55403965,183.53,183.46,2.727]
[1734850841834,2.7264,183.51,183.46,2.727]
[1734850845231,77.55403965,183.53,183.44,2.9]
[1734850845533,2.7266,183.5,183.45,2.7272]
[1734850847635,14.40528873,183.52,183.43,2.7275]
[1734850848540,14.40528873,183.52,183.42,2.0015]
[1734850848835,13.79397,183.56,183.42,2.0015]
[1734850849034,13.79397,183.56,183.43,14.40528873]
[1734850849224,2.726,183.54,183.49,2.7265]
[1734850850230,16.69397,183.56,183.46,2.9]
[1734850850432,13.79397,183.56,183.46,2.9]
[1734850850639,13.79397,183.56,183.46,17.30528873]
[1734850851339,13.79397,183.56,183.53,2.7259]
[1734850852129,13.79397,183.56,183.5,2.9]
[1734850852330,13.79397,183.56,183.51,2.7262]
[1734850852734,13.79397,183.56,183.5,2.9]
[1734850852937,13.79397,183.56,183.52,2.7261]
[1734850853738,16.69397,183.56,183.48,2.9]
[1734850854035,16.69397,183.56,183.46,2.9]
[1734850854235,2.7262,183.53,183.48,2.7266]
[1734850855239,16.69397,183.56,183.46,2.9]
[1734850855535,2.7259,183.55,183.5,2.7264]
[1734850855935,2.7259,183.54,183.5,2.7264]
[1734850859640,16.69397,183.56,183.46,2.9]
[1734850859835,16.69397,183.56,183.51,2.7263]
[1734850860632,16.69397,183.56,183.47,2.9]
[1734850861340,16.69397,183.56,183.48,2.1431]
[1734850864447,2.7259,183.54,183.5,2.7264]
[1734850864748,16.69397,183.56,183.48,2.1431]
[1734850865242,2.7259,183.55,183.48,2.1431]
[1734850865844,16.69397,183.56,183.48,2.1431]
[1734850867148,16.69397,183.56,183.54,2.7259]
[1734850867348,13.79397,183.56,183.54,2.7259]
[1734850868049,2.726,183.54,183.5,2.7265]
[1734850868249,13.79397,183.56,183.48,2.1431]
[1734850869045,2.9,183.55,183.44,1.9778]
[1734850870546,2.9,183.55,183.45,2.7271]
[1734850871250,2.7266,183.5,183.45,2.7271]
[1734850871851,2.7266,183.5,183.44,1.9778]
[1734850871852,2.7267,183.49,183.44,4.7052]
[1734850874245,2.9,183.51,183.45,2.7272]
[1734850874447,2.9,183.51,183.44,1.9778]
[1734850874661,2.9,183.53,183.44,1.9778]
[1734850875051,2.7258,183.55,183.45,2.9]
[1734850875248,16.69397,183.56,183.45,2.9]
[1734850875447,16.69397,183.56,183.47,2.7268]
[1734850875746,2.7263,183.52,183.47,2.7268]
[1734850876146,2.7263,183.52,183.48,2.7267]
[1734850877551,2.7261,183.53,183.48,2.7267]
[1734850877745,16.69397,183.56,183.45,2.9]
[1734850877943,16.51957,183.56,183.45,2.9]
[1734850878147,19.41957,183.56,183.45,2.9]
[1734850878341,19.41957,183.56,183.51,2.7262]
[1734850878949,13.79397,183.56,183.49,2.9]
[1734850879151,13.79397,183.56,183.48,2.9]
[1734850879454,13.79397,183.56,183.49,18.40568873]
[1734850879752,13.79397,183.56,183.51,2.7263]
[1734850879952,13.79397,183.56,183.49,18.40568873]
[1734850880349,13.79397,183.56,183.55,2.7258]
[1734850880954,13.79397,183.56,183.49,18.40568873]
[1734850881351,13.79397,183.56,183.49,4.0004]
[1734850881550,13.79397,183.56,183.53,2.726]
[1734850884854,13.79397,183.56,183.49,4.0004]
[1734850885154,13.79397,183.56,183.48,2.9]
[1734850885356,2.9,183.55,183.45,2.9]
[1734850885652,2.9,183.55,183.44,40.68171156]
[1734850885653,2.7261,183.53,183.48,2.7267]
[1734850885853,2.9,183.55,183.44,26.27642283]
[1734850886253,2.7268,183.49,183.44,29.00372283]
[1734850886452,2.7268,183.49,183.44,26.94442283]
[1734850886753,2.7268,183.49,183.44,1.9778]
[1734850887657,2.9,183.5,183.46,2.7271]
[1734850888250,5.6261,183.53,183.44,1.9778]
[1734850888552,5.6261,183.53,183.44,4.8778]
[1734850889253,2.9,183.53,183.44,4.8778]
[1734850889661,2.9,183.53,183.5,2.7265]
[1734850891557,5.6261,183.53,183.48,2.7267]
[1734850893155,5.6261,183.53,183.44,4.8778]
[1734850893156,2.9,183.53,183.44,4.8778]
[1734850893355,2.9,183.53,183.44,1.9778]
[1734850893654,17.30528873,183.53,183.44,1.9778]
[1734850893847,17.30528873,183.53,183.4,24.29862283]
[1734850894048,14.40528873,183.5,183.4,2.0593]
[1734850894255,2.7276,183.43,183.38,24.96762283]
[1734850894456,2.9,183.45,183.38,22.23932283]
[1734850894857,2.7276,183.43,183.38,22.23932283]
[1734850895162,2.9,183.45,183.38,22.23932283]
[1734850895360,2.9,183.45,183.37,4.8698]
[1734850895659,14.40528873,183.44,183.32,22.23932283]
[1734850896058,14.40528873,183.41,183.32,22.23932283]
[1734850896253,2.9,183.4,183.32,22.23932283]
[1734850896663,2.9,183.4,183.29,4.2286]
[1734850896855,14.40528873,183.38,183.28,130.46276164]
[1734850897556,2.729,183.33,183.28,130.46276164]
[1734850897856,2.9,183.34,183.28,22.23932283]
[1734850898061,2.9,183.33,183.28,22.23932283]
[1734850898359,2.9,183.33,183.24,2.1026]
[1734850898551,2.7296,183.29,183.22,24.96992283]
[1734850898753,2.9,183.28,183.22,24.96992283]
[1734850899254,2.9,183.28,183.22,22.23932283]
[1734850899662,2.9,183.28,183.18,4.2484]
[1734850899960,2.7306,183.23,183.18,4.2484]
[1734850900161,2.9,183.23,183.18,4.2484]
[1734850900561,2.9,183.23,183.13,22.23932283]
[1734850901262,2.9,183.23,183.13,2.732]
[1734850901562,2.9,183.23,183.12,14.40528873]
[1734850902165,2.9,183.23,183.17,2.7314]
[1734850903062,14.40528873,183.29,183.15,17.30528873]
[1734850903365,2.9,183.28,183.16,2.9]
[1734850903559,2.9,183.28,183.18,14.40528873]
[1734850904563,2.9,183.31,183.25,2.7302]
[1734850908562,2.88,183.34,183.23,4.2087]
[1734850909067,14.40528873,183.39,183.3,2.7295]
[1734850909264,2.88,183.38,183.3,2.7295]
[1734850909464,2.88,183.38,183.26,2.88]
[1734850909859,2.7289,183.34,183.27,2.7299]
[1734850910059,2.88,183.38,183.26,2.88]
[1734850911465,2.7287,183.36,183.26,2.88]
[1734850913173,2.88,183.37,183.26,2.88]
[1734850913867,14.40528873,183.42,183.26,2.88]
[1734850914073,2.7281,183.4,183.27,14.40528873]
[1734850914871,14.40528873,183.45,183.3,14.40528873]
[1734850915071,2.12538896,183.47,183.33,14.40528873]
[1734850915270,2.88,183.46,183.34,9.0484]
[1734850915471,5.6071,183.46,183.37,2.7283]
[1734850915771,5.6071,183.46,183.34,9.0484]
[1734850916270,2.88,183.46,183.41,2.7278]
[1734850917472,2.88,183.46,183.38,2.7282]
[1734850918069,2.7274,183.45,183.38,2.7282]
[1734850918372,2.88,183.46,183.38,2.7282]
[1734850918573,2.88,183.46,183.39,2.728]
[1734850918768,2.7273,183.45,183.35,2.88]
[1734850919169,2.88,183.46,183.38,2.7283]
[1734850920468,2.7275,183.44,183.38,2.7283]
[1734850922074,2.88,183.46,183.35,2.88]
[1734850922276,14.40528873,183.51,183.36,14.40528873]
[1734850922475,17.28528873,183.51,183.36,14.40528873]
[1734850922977,2.7267,183.49,183.43,2.7274]
[1734850923174,14.40528873,183.51,183.4,2.88]
[1734850923375,2.88,183.5,183.4,2.88]
[1734850924173,2.7267,183.49,183.44,2.7272]
[1734850928079,17.28528873,183.51,183.34,6.1684]
[1734850928280,14.40528873,183.48,183.35,2.88]
[1734850928483,2.88,183.47,183.34,9.0484]